bitfinex/quotes_ETHUSD_20220113
["timestamp","ask_amount","ask_price","bid_price","bid_amount"]
[1642107186839,1.02476757,3256.2,3256.0,0.77049211]
[1642107187040,1.02476757,3256.2,3256.1,0.00227369]
[1642107187640,1.58286755,3256.3,3256.1,0.00227369]
[1642107187840,0.032733,3256.4,3256.1,0.00227369]
[1642107188043,1.61560055,3256.5,3256.1,0.00227369]
[1642107188545,1.61560055,3256.5,3256.3,0.52797819]
[1642107188741,1.58286755,3256.5,3256.4,2.18781588]
[1642107188944,0.00113685,3256.7,3256.4,2.18781588]
[1642107188945,2.35804922,3256.7,3256.4,2.18781588]
[1642107189190,2.35804922,3256.7,3256.4,3.48781588]
[1642107189392,2.35804922,3256.7,3256.4,2.48781588]
[1642107189591,4.922e-05,3256.7,3256.5,1.86835566]
[1642107189793,4.922e-05,3256.7,3256.6,2.31075413]
[1642107189991,4.922e-05,3256.7,3256.6,2.61075413]
[1642107190191,3.9307224,3257.4,3256.8,0.0264205]
[1642107190391,3.9307224,3257.4,3256.9,0.1228]
[1642107190591,0.00341054,3257.3,3256.9,0.1228]
[1642107190791,0.00341054,3257.3,3257.0,0.76736]
[1642107190991,3.16509365,3257.5,3257.3,0.55847462]
[1642107191194,3.16509365,3257.5,3257.4,0.1227]
[1642107191391,0.00397896,3257.4,3257.3,0.1227]
[1642107191593,0.00397896,3257.4,3256.5,0.12383685]
[1642107191990,0.045463,3256.7,3256.5,0.00113685]
[1642107192192,0.032733,3257.2,3256.5,0.00113685]
[1642107192393,0.03614354,3257.3,3256.8,2.06321954]
[1642107192595,0.00227369,3257.1,3256.8,2.06321954]
[1642107192792,0.00284212,3257.2,3256.8,2.83076564]
[1642107193040,0.00170527,3257.0,3256.8,2.83076564]
[1642107193240,0.00227369,3257.1,3256.8,2.83076564]
[1642107193439,0.00113685,3256.9,3256.8,2.06321954]
[1642107193641,0.00170527,3257.0,3256.5,1.65898685]
[1642107193844,0.00113685,3256.9,3256.5,1.65898685]
[1642107194040,0.00113685,3256.9,3256.5,0.12393685]
[1642107194241,0.00341054,3257.3,3256.6,0.57384225]
[1642107194442,0.00341054,3257.3,3256.7,2.22782368]
[1642107194642,0.00284212,3257.2,3256.9,0.7674132]
[1642107194942,0.00227369,3257.1,3257.0,0.1228]
[1642107196347,0.00227369,3257.1,3256.6,2.10866225]
[1642107196348,0.03535169,3257.1,3256.6,0.57384225]
[1642107196544,0.03535169,3257.1,3256.5,0.76866685]
[1642107196545,0.045463,3256.7,3256.5,0.00113685]
[1642107196792,0.04716827,3257.0,3256.5,0.00113685]
[1642107197192,0.00113685,3256.9,3256.5,0.00113685]
[1642107197492,0.00341054,3257.3,3256.5,0.00113685]
[1642107197694,0.00341054,3257.3,3256.5,0.76873335]
[1642107197695,0.044057,3257.2,3256.5,0.76873335]
[1642107197892,0.045463,3257.0,3256.5,0.00113685]
[1642107198191,0.00113685,3256.9,3256.5,0.00113685]
[1642107198392,0.00113685,3256.9,3256.5,0.12393685]
[1642107198591,3.970133,3257.4,3256.5,0.12393685]
[1642107198592,0.00227369,3257.1,3256.5,0.12393685]
[1642107198795,0.00227369,3257.1,3256.5,0.89149685]
[1642107199000,3.16499523,3257.8,3256.7,9.8830186]
[1642107199193,2.37373494,3257.5,3257.0,0.01213283]
[1642107199393,3.9307224,3258.2,3257.6,9.43630033]
[1642107199394,1.87367992,3257.7,3257.6,9.43630033]
[1642107199595,3.9307224,3258.2,3257.7,7.95]
[1642107199795,0.00284212,3258.1,3257.8,1.58034345]
[1642107199993,0.00284212,3258.1,3258.0,0.3]
[1642107200199,3.10223016,3258.2,3258.0,0.1227]
[1642107200447,3.10223016,3258.2,3257.9,0.89091685]
[1642107200644,3.10223016,3258.2,3257.9,1.76821685]
[1642107200842,3.10223016,3258.2,3257.9,0.76821685]
[1642107201044,3.10223016,3258.2,3257.9,1.76821685]
[1642107201240,3.10223016,3258.2,3258.0,0.51757377]
[1642107201645,9.0482,3259.1,3258.3,0.76706]
[1642107201842,9.0482,3259.1,3258.3,1.53411]
[1642107202042,0.00284212,3258.6,3258.3,1.53411]
[1642107202442,0.00227369,3258.5,3258.3,1.53411]
[1642107202844,0.00170527,3258.4,3258.3,1.53411]
[1642107203144,0.00170527,3258.4,3258.3,15.91784824]
[1642107203543,0.00170527,3258.4,3258.3,16.91784824]
[1642107204199,0.00170527,3258.4,3258.3,8.43484824]
[1642107204497,0.00170527,3258.4,3258.3,8.85754824]
[1642107204698,0.00170527,3258.4,3258.3,8.25754824]
[1642107204998,0.00170527,3258.4,3258.3,4.7249879]
[1642107205199,0.00170527,3258.4,3258.3,5.7249879]
[1642107205498,0.00170527,3258.4,3258.3,1.8897538]
[1642107205899,0.00170527,3258.4,3258.3,1.1897538]
[1642107206099,0.00170527,3258.4,3258.3,2.1897538]
[1642107206398,0.00170527,3258.4,3258.3,1.0670538]
[1642107206599,0.00170527,3258.4,3258.3,5.8170538]
[1642107206800,0.00170527,3258.4,3258.3,4.8170538]
[1642107206999,0.00170527,3258.4,3258.3,5.8170538]
[1642107207199,0.00170527,3258.4,3258.3,0.7670538]
[1642107207398,0.00170527,3258.4,3258.3,2.0670538]
[1642107207599,0.00170527,3258.4,3258.3,0.7670538]
[1642107208439,0.00170527,3258.4,3257.9,0.12383685]
[1642107208440,0.04716827,3258.4,3257.9,0.12383685]
[1642107208638,0.045463,3258.0,3257.9,0.00113685]
[1642107209039,0.032733,3258.1,3257.8,0.00170527]
[1642107209237,0.032733,3258.2,3257.8,0.00170527]
[1642107209442,0.032733,3258.2,3258.0,1.37677782]
[1642107209939,0.03386985,3258.3,3258.0,1.37677782]
[1642107210339,0.03386985,3258.3,3258.1,0.7672]
[1642107210543,0.00113685,3258.3,3258.1,0.7672]
[1642107210739,0.045463,3258.2,3258.1,0.7672]
[1642107210940,0.00113685,3258.3,3258.1,0.7672]
[1642107211142,0.00113685,3258.3,3258.1,2.0672]
[1642107211348,0.00113685,3258.3,3258.2,8.4727]
[1642107211692,7.12972337,3259.1,3258.2,8.4727]
[1642107211693,7.12972337,3259.1,3258.6,0.76705]
[1642107211895,4.0127,3259.1,3259.0,0.51266816]
[1642107212100,3.11702337,3259.2,3258.8,0.3]
[1642107212295,3.11702337,3259.2,3258.8,1.83385]
[1642107212496,0.00397896,3259.0,3258.8,1.53385]
[1642107212696,0.00397896,3259.0,3258.8,2.65655]
[1642107212995,3.11702337,3259.2,3259.0,0.7669206]
[1642107213196,3.11702337,3259.2,3259.0,1.8896206]
[1642107213397,0.00454738,3259.1,3259.0,2.3306241]
[1642107213797,0.03955408,3259.5,3259.0,2.3306241]
[1642107213999,0.00682108,3259.5,3259.3,2.14804639]
[1642107214197,4.891033,3259.6,3259.3,2.14804639]
[1642107214198,0.00625265,3259.4,3259.3,2.14804639]
[1642107214399,0.00625265,3259.4,3259.3,2.91492639]
[1642107214606,0.00625265,3259.4,3259.3,11.90306523]
[1642107214798,0.00625265,3259.4,3259.3,14.40684069]
[1642107214997,3.11702337,3259.8,3259.4,7.25]
[1642107215197,3.11702337,3259.8,3259.6,0.7666374]
[1642107215449,3.11702337,3259.8,3259.7,2.34108069]
[1642107215842,3.11929707,3259.8,3259.7,3.34108069]
[1642107216045,0.0022737,3259.8,3259.7,3.34108069]
[1642107217044,0.0022737,3259.8,3259.7,1.1227]
[1642107217247,0.0022737,3259.8,3259.7,4.001372]
[1642107217446,3.11702337,3260.4,3259.8,8.9]
[1642107217645,3.61693731,3260.7,3260.2,1.5331124]
[1642107217846,0.00284211,3260.3,3260.2,1.5331124]
[1642107218044,0.00284211,3260.3,3260.2,2.8331124]
[1642107218244,0.00284211,3260.3,3260.2,3.1331124]
[1642107218645,0.00284211,3260.3,3260.2,3.1331324]
[1642107218946,0.00284211,3260.3,3260.2,2.3665524]
[1642107220422,0.00284211,3260.3,3259.4,1.56517375]
[1642107220423,0.03761311,3260.3,3259.7,1.5333459]
[1642107220624,0.03761311,3260.3,3259.5,1.97635]
[1642107220625,0.168063,3260.2,3259.4,1.56517375]
[1642107220822,0.045463,3259.5,3259.4,1.56517375]
[1642107221222,0.045463,3259.5,3259.3,5.32680788]
[1642107221625,0.032733,3259.6,3259.3,5.32680788]
[1642107221825,0.036452,3259.6,3259.3,5.32680788]
[1642107222022,0.032733,3259.9,3259.3,5.32680788]
[1642107222222,0.00113684,3260.0,3259.5,0.7668437]
[1642107222426,0.045463,3259.8,3259.5,0.7668437]
[1642107222623,0.045463,3259.8,3259.6,0.00113685]
[1642107222825,0.1227,3260.4,3259.6,2.30131135]
[1642107222826,0.032733,3259.9,3259.6,2.30131135]
[1642107223066,0.00397896,3260.5,3260.0,0.43509986]
[1642107223452,0.49991394,3260.7,3260.0,0.766657]
[1642107223453,0.00341054,3260.4,3260.0,0.766657]
[1642107223952,0.032733,3260.5,3260.0,0.766657]
[1642107224353,0.00341054,3260.4,3260.0,0.766657]
[1642107224553,0.00341054,3260.4,3260.0,1.30627814]
[1642107226889,0.00341054,3260.4,3260.1,0.76667]
[1642107227091,0.00341054,3260.4,3260.0,0.766657]
[1642107227298,0.00341054,3260.4,3260.1,4.46384137]
[1642107227493,0.00341054,3260.4,3260.1,3.40166386]
[1642107227688,0.00341054,3260.4,3260.2,2.81323549]
[1642107227888,0.00341054,3260.4,3260.2,1.7665984]
[1642107228087,0.00341054,3260.4,3260.2,4.91983324]
[1642107228288,0.00341054,3260.4,3260.3,1.40340864]
[1642107229088,0.00341054,3260.4,3260.3,4.0384525]
[1642107229290,0.00341054,3260.4,3260.3,4.1610525]
[1642107229488,0.00341054,3260.4,3260.3,5.1610525]
[1642107229691,0.00341054,3260.4,3260.3,5.4610525]
[1642107229889,0.00341054,3260.4,3260.3,8.39438715]
[1642107230092,0.00341054,3260.4,3260.3,8.42766716]
[1642107230290,0.00341054,3260.4,3260.3,6.20702161]
[1642107230549,0.9867608,3261.1,3260.7,0.76641]
[1642107230748,3.89627921,3261.4,3261.3,0.61319059]
[1642107230944,3.89627921,3261.4,3261.1,0.76636]
[1642107231144,4.699,3261.6,3261.1,0.76636]
[1642107231444,0.00511581,3261.3,3261.2,4.5226]
[1642107231643,0.00511581,3261.3,3261.2,6.28895]
[1642107231842,0.00511581,3261.3,3261.2,2.18895]
[1642107232043,0.00511581,3261.3,3261.2,0.88895]
[1642107232243,0.00511581,3261.3,3261.2,2.65527]
[1642107232648,0.00511581,3261.3,3261.2,5.29031386]
[1642107232844,0.00511581,3261.3,3261.2,5.59031386]
[1642107233044,0.00511581,3261.3,3261.2,3.75764386]
[1642107233850,0.00511581,3261.3,3261.2,4.52402386]
[1642107234043,0.00511581,3261.3,3261.2,3.75764386]
[1642107234289,0.00511581,3261.3,3261.2,1.1226]
[1642107234789,0.00511581,3261.3,3261.2,0.1226]
[1642107234988,0.00511581,3261.3,3260.9,0.7665223]
[1642107235192,0.045463,3261.0,3260.9,0.7665223]
[1642107235389,0.00454739,3261.2,3260.9,0.7665223]
[1642107235591,0.00341054,3261.0,3260.9,0.7665223]
[1642107235788,0.00397896,3261.1,3260.9,1.23665827]
[1642107235988,0.00341054,3261.0,3260.9,2.30305827]
[1642107236387,0.00341054,3261.0,3260.9,9.71947827]
[1642107236591,0.00341054,3261.0,3260.9,11.78597827]
[1642107238442,0.00341054,3261.0,3260.9,15.28597827]
[1642107238643,0.00341054,3261.0,3260.9,11.90857827]
[1642107238845,4.699,3261.6,3261.0,6.75]
[1642107239042,4.699,3261.6,3261.3,2.2987963]
[1642107239243,0.00284212,3261.5,3261.4,0.76625]
[1642107239841,0.00284212,3261.5,3261.4,3.29908499]
[1642107240549,0.00284212,3261.5,3261.4,1.76625]
[1642107241353,3.05284212,3261.5,3261.3,2.2987563]
[1642107241549,3.05284212,3261.5,3260.9,1.65542]
[1642107241550,0.04830512,3261.5,3260.9,1.65542]
[1642107241794,0.00227369,3261.4,3261.0,0.76643]
[1642107242193,0.00170527,3261.3,3261.0,0.76643]
[1642107242393,0.045463,3261.1,3261.0,0.76643]
[1642107242593,0.04201185,3261.2,3261.0,0.76643]
[1642107242794,0.00113685,3261.2,3261.0,1.5328587]
[1642107243597,0.045463,3261.1,3260.7,0.7665632]
[1642107243797,0.00113685,3261.2,3260.7,1.5331232]
[1642107243798,0.045463,3260.9,3260.7,1.5331232]
[1642107243994,0.032733,3261.1,3260.8,0.00113685]
[1642107244494,0.00113685,3261.2,3260.8,0.76763685]
[1642107244495,0.03386985,3261.2,3260.8,0.76763685]
[1642107244695,0.03386985,3261.2,3260.9,0.766518]
[1642107244895,0.03386985,3261.2,3260.9,1.532998]
[1642107245095,0.03386985,3261.2,3260.9,2.299448]
[1642107245946,0.00113685,3261.2,3260.9,2.299448]
[1642107246746,0.00113685,3261.2,3260.9,3.832248]
[1642107247150,0.00113685,3261.2,3261.0,0.76644]
[1642107247750,0.00113685,3261.2,3261.0,1.76644]
[1642107247950,4.699,3261.6,3261.1,7.75]
[1642107248149,5.2655,3262.2,3262.0,2.02697873]
[1642107248150,8.9837,3262.2,3262.0,2.02697873]
[1642107248352,5.0493,3262.2,3262.0,2.02697873]
[1642107248948,5.0493,3262.2,3262.0,1.53238]
[1642107249206,5.055913,3262.2,3262.1,2.63386522]
[1642107249597,5.06159723,3262.2,3262.1,2.63386522]
[1642107250796,5.06159723,3262.2,3261.8,0.7662986]
[1642107251001,5.06159723,3262.2,3261.7,2.2988646]
[1642107251002,0.045463,3261.9,3261.7,2.2988646]
[1642107251198,0.045463,3261.9,3261.5,1.53256]
[1642107251398,0.00341054,3261.8,3261.5,1.53256]
[1642107251598,0.00341054,3261.8,3261.4,1.5326895]
[1642107251800,0.045463,3261.6,3261.0,1.56517375]
[1642107252001,0.00284211,3261.7,3261.0,1.56517375]
[1642107252002,0.045463,3261.1,3261.0,1.56517375]
[1642107252209,0.045463,3261.1,3260.8,1.5663106]
[1642107252398,3.70709238,3262.1,3261.0,0.00113685]
[1642107252600,2.90006296,3262.1,3260.9,0.00341054]
[1642107252800,0.00284211,3262.0,3261.0,0.52270022]
[1642107253043,0.1226,3261.9,3261.0,0.52270022]
[1642107253241,0.12487369,3261.9,3261.1,0.0022737]
[1642107253443,0.00170527,3261.8,3261.1,0.0022737]
[1642107253647,0.00170527,3261.8,3261.0,0.00284212]
[1642107253842,0.1226,3262.0,3261.0,0.00284212]
[1642107253843,0.00113684,3261.7,3261.0,0.00284212]
[1642107254343,0.00227369,3261.9,3261.1,0.7664864]
[1642107254544,0.1226,3261.8,3261.1,0.7664864]
[1642107254844,0.00113684,3261.7,3261.2,0.00170527]
[1642107255242,0.00113684,3261.7,3261.2,0.76816297]
[1642107255445,0.00113684,3261.7,3261.2,1.53461297]
[1642107255644,0.00113684,3261.7,3261.3,0.12373685]
[1642107256898,0.00113684,3261.7,3261.3,0.00113685]
[1642107257096,0.1226,3261.6,3261.3,0.00113685]
[1642107257296,0.1226,3261.6,3261.0,0.00284212]
[1642107257596,0.1226,3261.6,3260.9,0.00341054]
[1642107257997,0.1226,3261.6,3260.9,0.76995824]
[1642107258396,0.00113684,3261.7,3261.0,0.00284212]
[1642107258800,0.00113684,3261.7,3260.8,0.00397897]
[1642107258998,0.00113684,3261.7,3261.2,0.76642]
[1642107259198,0.00113684,3261.7,3261.3,0.76643]
[1642107259400,0.00113684,3261.7,3261.4,0.7664229]
[1642107259799,0.00113684,3261.7,3261.3,0.89016685]
[1642107259999,0.00113684,3261.7,3261.3,0.12373685]
[1642107260199,0.00113684,3261.7,3261.3,0.00113685]
[1642107260446,0.76775684,3261.7,3261.3,0.00113685]
[1642107260742,0.76775684,3261.7,3261.0,0.00284212]
[1642107260943,0.00113684,3261.7,3261.0,0.00284212]
[1642107261347,0.00113684,3261.7,3260.9,0.00341054]
[1642107262646,0.76662,3261.6,3260.9,0.00341054]
[1642107263045,0.00113684,3261.7,3260.8,0.00397897]
[1642107263246,0.00113684,3261.7,3260.9,0.76653]
[1642107263747,0.44413684,3261.7,3261.0,0.00284212]
[1642107263949,0.1226,3261.6,3261.0,0.00284212]
[1642107264203,1.1893,3261.6,3260.8,0.00397897]
[1642107264591,0.76665,3261.5,3260.8,0.00397897]
[1642107264793,0.1226,3261.4,3260.8,0.00397897]
[1642107265093,4.7413,3261.4,3260.8,0.00397897]
[1642107265391,4.6187,3261.4,3260.8,0.00397897]
[1642107265593,0.1226,3261.3,3260.8,0.00397897]
[1642107265792,4.6187,3261.4,3260.8,0.77055087]
[1642107265992,4.6187,3261.4,3260.8,0.7665719]
[1642107266192,4.6187,3261.4,3260.9,0.00341054]
[1642107266796,4.6187,3261.4,3260.7,0.00454739]
[1642107266993,4.6187,3261.4,3260.9,0.76654]
[1642107267193,4.6187,3261.4,3260.9,2.29952]
[1642107267397,4.6187,3261.4,3261.0,0.00284212]
[1642107268041,1.15693684,3261.7,3261.0,0.00284212]
[1642107268241,1.15693684,3261.7,3261.1,0.7664823]
[1642107268441,0.00113684,3261.7,3261.2,0.1226]
[1642107268741,0.00113684,3261.7,3261.3,0.00113685]
[1642107269342,0.00113684,3261.7,3261.2,0.00170527]
[1642107269541,0.00113684,3261.7,3261.1,0.7687677]
[1642107269741,0.00113684,3261.7,3261.2,0.00170527]
[1642107270141,0.00113684,3261.7,3261.2,2.63444722]
[1642107270545,0.00113684,3261.7,3261.3,0.00113685]
[1642107270546,0.12373684,3261.7,3261.3,0.00113685]
[1642107270740,0.00113684,3261.7,3261.3,0.00113685]
[1642107271340,0.00113684,3261.7,3261.0,0.00284212]
[1642107271799,0.76774684,3261.7,3261.0,0.00284212]
[1642107272294,0.76774684,3261.7,3260.8,0.00397897]
[1642107272494,2.25823757,3261.6,3260.8,0.00397897]
[1642107272695,2.70123757,3261.6,3260.8,0.00397897]
[1642107272894,0.76674,3261.2,3260.8,2.63862441]
[1642107273095,0.71674,3261.2,3260.8,2.63862441]
[1642107273293,0.71674,3261.2,3260.9,0.00341054]
[1642107273694,1.12462538,3261.1,3260.9,0.00341054]
[1642107274297,1.12462538,3261.1,3260.8,0.00397897]
[1642107274694,0.76676,3261.0,3260.8,0.00397897]
[1642107274895,0.76676,3261.0,3260.5,0.00568424]
[1642107275097,0.1226,3260.9,3260.5,0.00568424]
[1642107275945,0.76681,3260.8,3260.5,0.00568424]
[1642107277745,0.1226,3260.9,3260.5,0.00568424]
[1642107277944,0.1226,3261.2,3260.6,0.7666566]
[1642107278343,0.1226,3261.2,3260.7,0.00454739]
[1642107279208,0.1226,3261.2,3260.6,3.30597139]
[1642107279400,0.00227369,3261.1,3260.8,2.634774]
[1642107279897,0.00170527,3261.0,3260.8,2.534774]
[1642107280296,0.00113685,3260.9,3260.8,2.534774]
[1642107280698,0.56673685,3260.9,3260.8,2.534774]
[1642107280899,0.56673685,3260.9,3259.8,1.68777375]
[1642107280900,12.42332159,3260.9,3259.8,1.56517375]
[1642107281098,5.0625,3260.8,3259.7,5.51597158]
[1642107281298,1.08199,3260.3,3259.9,0.00454739]
[1642107281496,0.1226,3260.2,3259.9,0.00454739]
[1642107281698,5.46548823,3260.0,3259.9,0.00454739]
[1642107281898,5.58818823,3260.0,3259.9,0.00454739]
[1642107282100,5.1398,3260.0,3259.9,0.00454739]
[1642107282296,5.1398,3260.0,3259.2,0.00852635]
[1642107282496,0.1227,3259.9,3259.2,0.00852635]
[1642107283244,0.76706,3259.8,3259.2,0.00852635]
[1642107283944,5.0645,3259.9,3259.2,0.00852635]
[1642107284144,4.9418,3259.9,3259.2,0.00852635]
[1642107284343,4.9418,3259.9,3259.1,0.13179478]
[1642107284544,4.9418,3259.9,3259.2,0.00852635]
[1642107284944,4.9418,3259.9,3259.3,0.7670044]
[1642107285144,4.9418,3259.9,3259.4,0.1227]
[1642107285347,4.9418,3259.9,3259.4,0.00738951]
[1642107285550,4.9418,3259.9,3259.5,0.12952108]
[1642107285746,4.9418,3259.9,3259.1,1.56517375]
[1642107285747,4.9418,3259.9,3259.7,1.22219343]
[1642107285947,4.9418,3259.9,3259.6,1.66258806]
[1642107286146,4.9418,3259.9,3259.8,0.00511581]
[1642107286346,4.9418,3259.9,3259.8,0.1227]
[1642107286795,4.9418,3259.9,3259.8,0.12781581]
[1642107286996,4.9418,3259.9,3259.8,0.00511581]
[1642107287196,4.9418,3259.9,3259.8,0.12781581]
[1642107289699,4.9418,3259.9,3259.8,0.00511581]
[1642107290748,8.6418,3259.9,3259.8,0.00511581]
[1642107290948,4.9418,3259.9,3259.8,0.00511581]
[1642107291150,7.21850201,3259.9,3259.5,0.00682108]
[1642107291349,2.34149007,3259.8,3259.5,0.00682108]
[1642107291748,3.48432693,3259.8,3259.5,0.00682108]
[1642107291948,3.48432693,3259.8,3259.3,0.00795793]
[1642107292250,1.26553686,3259.8,3259.1,0.00909478]
[1642107292450,0.76711,3259.7,3259.1,0.00909478]
[1642107292649,0.1227,3259.6,3259.1,0.00909478]
[1642107293050,0.1227,3259.7,3259.1,0.00909478]
[1642107293447,0.1227,3259.7,3258.9,1.56517375]
[1642107293448,0.1227,3259.7,3259.0,0.0096632]
[1642107294493,0.76712,3259.4,3259.0,0.0096632]
[1642107294696,1.70762,3259.4,3258.9,0.01023162]
[1642107295992,1.70762,3259.4,3258.6,0.77913799]
[1642107296195,1.70762,3259.4,3258.6,0.01193689]
[1642107296196,0.1227,3259.4,3258.6,0.01193689]
[1642107296393,0.1227,3259.7,3258.7,0.13406847]
[1642107296594,0.1227,3259.7,3259.1,0.53975109]
[1642107296795,1.2477,3259.8,3259.1,0.58068709]
[1642107297093,5.0645,3259.9,3259.6,0.7669]
[1642107297294,4.9418,3259.9,3259.6,0.7669]
[1642107297493,4.9418,3259.9,3259.7,0.00568424]
[1642107297948,4.9418,3259.9,3259.7,0.77257464]
[1642107298348,4.9418,3259.9,3259.8,0.00511581]
[1642107298748,4.9418,3259.9,3259.3,0.00795793]
[1642107299349,5.70884,3259.9,3259.3,0.77498853]
[1642107299750,5.70884,3259.9,3259.4,0.00738951]
[1642107300354,5.70884,3259.9,3259.4,2.64289366]
[1642107300752,5.70884,3259.9,3259.5,0.00682108]
[1642107301795,0.76717,3259.7,3259.5,0.00682108]
[1642107302094,7.58372313,3259.6,3258.7,0.01136847]
[1642107302296,0.1227,3259.5,3258.7,0.01136847]
[1642107302494,0.1227,3259.5,3258.6,0.01193689]
[1642107302898,1.30355883,3259.0,3258.4,0.01307374]
[1642107304299,1.30355883,3259.0,3258.7,0.767208]
[1642107304698,1.30355883,3259.0,3258.8,0.01080005]
[1642107305098,1.30355883,3259.0,3258.4,0.01307374]
[1642107305299,2.07079883,3259.0,3258.4,0.01307374]
[1642107306349,2.07079883,3259.0,3258.5,0.7672455]
[1642107306547,0.76724,3259.0,3258.5,0.7672455]
[1642107306748,0.88985,3259.3,3258.6,0.77908689]
[1642107306951,0.88985,3259.3,3258.6,2.31338429]
[1642107307148,0.88985,3259.3,3258.7,0.01136847]
[1642107307347,0.88985,3259.3,3258.9,0.7671487]
[1642107307547,0.88985,3259.3,3258.7,0.01136847]
[1642107307750,0.88985,3259.3,3259.0,0.0096632]
[1642107307948,1.09898086,3259.2,3258.7,0.01136847]
[1642107308350,0.76725,3259.0,3258.7,0.01136847]
[1642107309051,0.1227,3259.3,3258.8,0.7671936]
[1642107309297,0.76717,3259.2,3258.8,0.7671936]
[1642107309499,0.1227,3259.3,3258.9,0.01023162]
[1642107309796,1.14739848,3259.3,3258.7,0.01136847]
[1642107310197,0.1227,3259.5,3258.8,0.7672025]
[1642107310598,0.1227,3259.6,3258.9,0.01023162]
[1642107311098,0.1227,3259.6,3258.9,2.90680011]
[1642107311300,0.1227,3259.6,3259.5,0.041413]
[1642107311500,5.1567,3259.8,3259.5,0.041413]
[1642107311698,5.1567,3259.8,3259.5,0.04823408]
[1642107311999,5.1567,3259.8,3259.6,0.00625266]
[1642107312198,5.1567,3259.8,3259.6,0.77323686]
[1642107312399,4.9418,3259.9,3259.6,0.77323686]
[1642107312597,4.9418,3259.9,3259.7,0.0234204]
[1642107312799,4.9418,3259.9,3259.7,0.00568424]
[1642107313050,4.9418,3259.9,3259.8,0.00511581]
[1642107313249,4.9418,3259.9,3259.7,2.30646294]
[1642107313649,4.9418,3259.9,3259.8,0.00511581]
[1642107313849,4.9418,3259.9,3259.8,2.64054172]
[1642107314451,4.73975,3260.6,3259.8,2.64054172]
[1642107314452,3.2059,3260.6,3259.8,2.64054172]
[1642107314651,5.1738,3260.7,3260.2,0.7668727]
[1642107314852,5.03299997,3260.9,3259.8,4.17427302]
[1642107314853,0.1226,3260.6,3259.8,4.17427302]
[1642107315052,0.1226,3260.8,3260.3,0.0022737]
[1642107315253,0.76686,3260.6,3260.3,0.0022737]
[1642107315452,1.21815861,3260.7,3260.3,0.0022737]
[1642107315453,0.1226,3260.5,3260.3,0.0022737]
[1642107315653,1.21815861,3260.7,3260.3,0.0022737]
[1642107315654,0.1226,3260.6,3260.3,0.0022737]
[1642107315854,0.443,3260.5,3260.3,0.0022737]
[1642107316056,5.8,3260.3,3259.9,2.63542591]
[1642107316252,1.53438,3260.1,3259.9,2.63542591]
[1642107316452,7.7156,3260.0,3259.9,2.6376996]
[1642107316724,0.5656,3260.0,3259.9,2.6376996]
[1642107317513,0.5656,3260.0,3259.9,0.00227369]
[1642107317913,0.5656,3260.0,3259.7,0.00341054]
[1642107318113,0.76704,3259.9,3259.7,0.00341054]
[1642107319515,9.3727,3259.8,3259.7,0.00341054]
[1642107319914,14.4492,3259.8,3259.7,0.00341054]
[1642107320115,14.4492,3259.8,3259.4,0.00511581]
[1642107320314,0.76727,3259.6,3259.4,0.00511581]
[1642107320561,8.3503653,3259.5,3259.4,0.00511581]
[1642107320959,9.3503653,3259.5,3259.4,0.00511581]
[1642107321265,9.3503653,3259.5,3259.1,0.00682108]
[1642107321663,0.76726,3259.3,3259.1,0.00682108]
[1642107322561,0.76726,3259.3,3259.2,2.63542591]
[1642107322962,0.76726,3259.3,3259.2,2.64167856]
[1642107322963,1.21026,3259.3,3259.2,2.64167856]
[1642107323162,3.70001217,3259.3,3259.2,2.64167856]
[1642107323363,0.76746,3258.9,3258.4,1.56517375]
[1642107323563,1.21046,3258.8,3258.4,1.56517375]
[1642107323766,3.43867555,3258.8,3258.5,0.00397897]
[1642107324198,1.21046,3258.8,3258.5,0.00397897]
[1642107324792,3.37929088,3258.8,3258.5,0.00397897]
[1642107324992,3.37929088,3258.8,3258.1,0.00625266]
[1642107325593,0.3,3258.7,3258.1,0.00625266]
[1642107325795,1.14075205,3258.3,3258.1,0.00625266]
[1642107325995,8.88999334,3258.2,3258.1,0.00625266]
[1642107326398,11.43999334,3258.2,3258.1,0.00625266]
[1642107326597,12.43999334,3258.2,3258.1,0.00625266]
[1642107327296,12.56269334,3258.2,3258.1,0.00625266]
[1642107327497,12.56269334,3258.2,3257.5,1.56517375]
[1642107327498,8.9,3258.1,3257.5,1.56517375]
[1642107327697,17.88,3257.9,3257.5,1.56517375]
[1642107327953,9.25,3257.7,3257.5,0.00291587]
[1642107328154,5.9,3257.5,3257.2,2.29238187]
[1642107328354,1.34037544,3257.3,3257.0,3.05716027]
[1642107328553,1.34037544,3257.3,3256.6,3.95079783]
[1642107328554,6.05,3257.1,3256.6,3.95079783]
[1642107328754,0.5658,3257.0,3256.6,3.95079783]
[1642107328957,1.5658,3257.0,3256.7,0.00511581]
[1642107329756,0.7679,3256.9,3256.7,0.00511581]
[1642107329958,1.2109,3256.9,3256.7,0.00511581]
[1642107330156,5.4762,3256.9,3256.2,0.00795793]
[1642107330458,4.7083,3256.9,3256.2,0.00795793]
[1642107330656,4.7083,3256.9,3256.2,0.13075793]
[1642107331058,4.2653,3256.9,3256.8,3.845463]
[1642107331262,0.443,3257.7,3256.8,4.98574063]
[1642107331467,0.443,3257.7,3256.8,1.31308802]
[1642107331468,4.3478,3257.6,3256.8,1.31308802]
[1642107331705,4.3478,3257.6,3256.9,0.00397896]
[1642107332093,5.1154,3257.6,3256.9,0.00397896]
[1642107333096,5.2382,3257.6,3256.9,0.00397896]
[1642107333495,0.76769,3257.3,3256.6,0.00568423]
[1642107334099,0.76769,3257.3,3256.4,0.00682108]
[1642107334499,0.76769,3257.3,3256.2,0.00795793]
[1642107335098,2.2772592,3257.3,3256.2,0.00795793]
[1642107335748,0.76769,3257.3,3256.2,0.00795793]
[1642107335951,3.1543,3257.4,3256.2,0.00795793]
[1642107336150,0.1228,3257.5,3256.2,0.77556793]
[1642107336350,4.4706,3257.6,3256.6,0.041099]
[1642107336552,4.4706,3257.6,3257.5,0.045463]
[1642107336755,4.4706,3257.6,3256.7,0.1227]
[1642107336756,4.3478,3257.6,3256.7,0.1227]
[1642107336950,4.3478,3257.6,3257.2,0.042118]
[1642107337150,0.76763,3257.5,3257.2,0.042118]
[1642107337349,0.76763,3257.5,3256.6,0.041099]
[1642107337350,0.76763,3257.5,3257.3,0.00170527]
[1642107337752,6.8727,3257.4,3256.8,1.58113705]
[1642107338050,8.40815,3257.4,3256.9,0.00397896]
[1642107338850,1.53545,3257.4,3256.9,0.00397896]
[1642107339050,1.53545,3257.4,3256.6,0.00568423]
[1642107339304,0.89043,3257.5,3256.6,0.04426323]
[1642107339503,4.4706,3257.6,3256.6,0.04426323]